[Event "9. Korbacher Open 2017"]
[Site "Korbach"]
[Date "2017.10.22"]
[Round "7"]
[White "Schmidt, Andre"]
[Black "Maiwald, Harald"]
[Result "1-0"]
[ECO "D85"]
[WhiteElo "2154"]
[BlackElo "2014"]
[Annotator "NA"]
[PlyCount "61"]
[EventDate "2017.??.??"]
[EventType "swiss"]
[EventCountry "GER"]
[SourceTitle "playchess.com"]
[Source "ChessBase"]
[SourceQuality "1"]
[TimeControl "40/5400+30:1800+30"]

1. d4 {[%emt 0:00:00]} Nf6 {[%emt 0:00:07]} 2. c4 {[%emt 0:00:00]} g6 {[%emt 0:00:24]} 3. Nc3 {[%emt 0:00:00]} d5 {[%emt 0:00:01]} 4. cxd5 {[%emt 0:01:26]} Nxd5 {[%emt 0:00:03]} 5. Bd2 {[%emt 0:00:20]} Bg7 {[%emt 0:00:12]} 6. e4 {[%emt 0:00:13]} Nb6 {[%emt 0:00:56]} 7. Be3 {[%emt 0:00:08]} Nc6 {[%emt 0:02:25]} 8. Bb5 {[%emt 0:01:35]} Bd7 {[%emt 0:02:51]} 9. Nf3 {[%emt 0:04:14]} O-O {[%emt 0:04:23]} 10. O-O {[%emt 0:01:51]} Na5 {[%emt 0:07:32]} 11. Be2 {[%emt 0:00:48]} Nac4 {[%emt 0:00:51]} 12. Bc1 {[%emt 0:00:31]} e5 {[%emt 0:01:24]} 13. d5 {[%emt 0:00:34]} c6 {[%emt 0:06:23]} 14. b3 {[%emt 0:00:57]} Na5 {[%emt 0:04:04]} 15. Ba3 {[%emt 0:00:50]} Re8 {[%emt 0:04:30]} 16. Bb4 {[%emt 0:00:45]} Nc8 {[%emt 0:00:07]} 17. Rc1 {[%emt 0:03:09]} cxd5 {[%emt 0:08:31]} 18. exd5 {[%emt 0:00:25]} Qb6 {[%emt 0:03:07]} 19. Ba3 {[%emt 0:00:55]} Nd6 {[%emt 0:01:37]} 20. Nd2 {[%emt 0:06:45]} Rac8 {[%emt 0:06:29]} 21. Nde4 {[%emt 0:04:03]} Nxe4 {[%emt 0:01:14]} 22. Nxe4 {[%emt 0:00:15]} Rxc1 {[%emt 0:02:18]} 23. Qxc1 {[%emt 0:00:41]} Rc8 {[%emt 0:03:08]} 24. Qd2 {[%emt 0:06:23]} Bf5 {[%emt 0:08:11]} 25. Rc1 {[%emt 0:03:39]} Rxc1+ {[%emt 0:02:45]} 26. Qxc1 {[%emt 0:00:03]} Qd8 {[%emt 0:00:21]} 27. Ng3 {[%emt 0:01:07]} b6 {[%emt 0:02:07]} 28. Ba6 {[%emt 0:00:56]} Bf8 {[%emt 0:08:49]} 29. Bxf8 {[%emt 0:02:14]} Qxf8 {[%emt 0:01:40]} 30. Nxf5 {[%emt 0:00:18]} gxf5 {[%emt 0:00:16]} 31. Qg5+ {[%emt 0:00:26]} 1-0

[Event "9. Korbacher Open 2017"]
[Site "Korbach"]
[Date "2017.10.22"]
[Round "7"]
[White "Vlaming, Jos"]
[Black "Plaza Reino, Mercedes"]
[Result "1-0"]
[ECO "A28"]
[WhiteElo "2136"]
[BlackElo "1822"]
[Annotator "NA"]
[PlyCount "85"]
[EventDate "2017.??.??"]
[EventType "swiss"]
[EventCountry "GER"]
[SourceTitle "playchess.com"]
[Source "ChessBase"]
[SourceQuality "1"]
[TimeControl "40/5400+30:1800+30"]

1. c4 {[%emt 0:02:03]} e5 {[%emt 0:00:28]} 2. Nc3 {[%emt 0:00:25]} Nf6 {[%emt 0:00:24]} 3. Nf3 {[%emt 0:00:10]} Nc6 {[%emt 0:00:11]} 4. e4 {[%emt 0:00:03]} Bc5 {[%emt 0:02:18]} 5. Nxe5 {[%emt 0:01:04]} Nxe5 {[%emt 0:02:32]} 6. d4 {[%emt 0:00:55]} Bb4 {[%emt 0:02:10]} 7. dxe5 {[%emt 0:00:08]} Nxe4 {[%emt 0:01:39]} 8. Qf3 {[%emt 0:00:11]} Nxc3 {[%emt 0:02:44]} 9. bxc3 {[%emt 0:00:02]} Bf8 {[%emt 0:11:44]} 10. Bf4 {[%emt 0:01:11]} Qe7 {[%emt 0:14:28]} 11. O-O-O {[%emt 0:01:12]} g6 {[%emt 0:06:02]} 12. Kb1 {[%emt 0:07:20]} Bg7 {[%emt 0:02:34]} 13. Bd3 {[%emt 0:01:55]} O-O {[%emt 0:03:37]} 14. Qg3 {[%emt 0:03:25]} Qe6 {[%emt 0:05:14]} 15. Rd2 {[%emt 0:07:17]} Rb8 {[%emt 0:05:58]} 16. h4 {[%emt 0:02:27]} h5 {[%emt 0:12:26]} 17. Qe3 {[%emt 0:02:04]} b6 {[%emt 0:12:50]} 18. f3 {[%emt 0:00:44]} Bb7 {[%emt 0:00:41]} 19. Re2 {[%emt 0:01:25]} Rfe8 {[%emt 0:01:41]} 20. Rhe1 {[%emt 0:05:21]} Qe7 {[%emt 0:01:13]} 21. Qf2 {[%emt 0:14:52]} Qe6 {[%emt 0:01:16]} 22. Bg5 {[%emt 0:02:36]} Ba6 {[%emt 0:01:37]} 23. Qd4 {[%emt 0:04:57]} Bf8 {[%emt 0:03:56]} 24. g4 {[%emt 0:03:39]} hxg4 {[%emt 0:02:26]} 25. fxg4 {[%emt 0:00:33]} Bc5 {[%emt 0:00:42]} 26. Qf4 {[%emt 0:00:14]} b5 {[%emt 0:00:19]} 27. Ka1 {[%emt 0:01:43]} bxc4 {[%emt 0:00:36]} 28. Bb1 {[%emt 0:00:21]} Ba3 {[%emt 0:01:31]} 29. Rf1 {[%emt 0:11:53]} Bb7 {[%emt 0:00:40]} 30. Bf6 {[%emt 0:01:41]} Bf8 {[%emt 0:00:44]} 31. Qg5 {[%emt 0:01:42]} Bg7 {[%emt 0:00:41]} 32. h5 {[%emt 0:08:48]} Bd5 {[%emt 0:00:29]} 33. hxg6 {[%emt 0:00:57]} Rxb1+ {[%emt 0:00:31]} 34. Rxb1 {[%emt 0:00:02]} Bf3 {[%emt 0:00:34]} 35. gxf7+ {[%emt 0:00:57]} Qxf7 {[%emt 0:00:22]} 36. Rf2 {[%emt 0:02:11]} Be4 {[%emt 0:00:02]} 37. Re1 {[%emt 0:00:59]} Bg6 {[%emt 0:00:08]} 38. Ref1 {[%emt 0:00:15]} Rb8 39. Rb2 {[%emt 0:01:20]} Re8 {[%emt 0:01:28]} 40. Rh2 {[%emt 0:01:59]} Rb8 {[%emt 0:30:48]} 41. Rfh1 {[%emt 0:31:07]} Qe8 {[%emt 0:00:00]} 42. Bxg7 {[%emt 0:00:00]} Kxg7 {[%emt 0:00:00]} 43. Qf6+ {[%emt 0:00:00]} 1-0

[Event "9. Korbacher Open 2017"]
[Site "Korbach"]
[Date "2017.10.22"]
[Round "7"]
[White "Thomas, Ingo"]
[Black "Timar-Geng, Zoltan"]
[Result "1/2-1/2"]
[ECO "C54"]
[WhiteElo "2129"]
[BlackElo "1859"]
[Annotator "NA"]
[PlyCount "35"]
[EventDate "2017.??.??"]
[EventType "swiss"]
[EventCountry "GER"]
[SourceTitle "playchess.com"]
[Source "ChessBase"]
[SourceQuality "1"]
[TimeControl "40/5400+30:1800+30"]

1. e4 {[%emt 0:00:07]} e5 {[%emt 0:00:23]} 2. Nf3 {[%emt 0:00:03]} Nc6 {[%emt 0:00:05]} 3. Bc4 {[%emt 0:00:07]} Bc5 {[%emt 0:00:20]} 4. c3 {[%emt 0:00:05]} Nf6 {[%emt 0:00:05]} 5. d3 {[%emt 0:00:05]} d6 {[%emt 0:00:40]} 6. h3 {[%emt 0:00:20]} a6 {[%emt 0:00:11]} 7. Bb3 {[%emt 0:00:05]} Ba7 {[%emt 0:00:18]} 8. Nbd2 {[%emt 0:00:37]} h6 {[%emt 0:00:10]} 9. Nf1 {[%emt 0:00:43]} O-O {[%emt 0:06:06]} 10. Ng3 {[%emt 0:00:48]} Re8 {[%emt 0:02:41]} 11. O-O {[%emt 0:00:20]} Be6 {[%emt 0:00:06]} 12. Bc2 {[%emt 0:02:27]} d5 {[%emt 0:02:00]} 13. Qe2 {[%emt 0:00:36]} Qd7 {[%emt 0:11:32]} 14. Kh2 {[%emt 0:02:24]} dxe4 {[%emt 0:04:22]} 15. dxe4 {[%emt 0:00:28]} Rad8 {[%emt 0:00:58]} 16. Nh4 {[%emt 0:02:43]} Kh8 {[%emt 0:15:37]} 17. Ngf5 {[%emt 0:08:40]} g5 {[%emt 0:09:37]} 18. Rd1 {[%emt 0:20:45]} 1/2-1/2

[Event "9. Korbacher Open 2017"]
[Site "Korbach"]
[Date "2017.10.22"]
[Round "7"]
[White "Andersen, Lars Christoff"]
[Black "Koellner, Ruben Gideon"]
[Result "1/2-1/2"]
[ECO "A27"]
[WhiteElo "2107"]
[BlackElo "2148"]
[Annotator "NA"]
[PlyCount "73"]
[EventDate "2017.??.??"]
[EventType "swiss"]
[EventCountry "GER"]
[SourceTitle "playchess.com"]
[Source "ChessBase"]
[SourceQuality "1"]
[TimeControl "40/5400+30:1800+30"]

1. c4 {[%emt 0:00:00]} e5 {[%emt 0:00:05]} 2. Nc3 {[%emt 0:00:00]} Nc6 {[%emt 0:00:16]} 3. Nf3 {[%emt 0:00:00]} Bc5 {[%emt 0:00:39]} 4. e3 {[%emt 0:00:20]} d6 {[%emt 0:01:17]} 5. d4 {[%emt 0:01:30]} exd4 {[%emt 0:00:45]} 6. exd4 {[%emt 0:00:11]} Bb6 {[%emt 0:00:11]} 7. Be2 {[%emt 0:07:24]} Nge7 {[%emt 0:01:43]} 8. b4 {[%emt 0:01:55]} a6 {[%emt 0:02:09]} 9. d5 {[%emt 0:05:33]} Nb8 {[%emt 0:01:12]} 10. Bb2 {[%emt 0:06:51]} O-O {[%emt 0:05:26]} 11. O-O {[%emt 0:02:32]} Nd7 {[%emt 0:02:36]} 12. Ne4 {[%emt 0:07:34]} Ba7 {[%emt 0:03:30]} 13. Qc2 {[%emt 0:02:18]} Ng6 {[%emt 0:05:21]} 14. Rfd1 {[%emt 0:07:00]} Re8 {[%emt 0:02:09]} 15. c5 {[%emt 0:08:58]} dxc5 {[%emt 0:02:22]} 16. d6 {[%emt 0:00:57]} cxd6 {[%emt 0:08:13]} 17. Nxd6 {[%emt 0:01:44]} Re7 {[%emt 0:00:51]} 18. Nf5 {[%emt 0:04:21]} f6 {[%emt 0:02:54]} 19. Bc4+ {[%emt 0:01:31]} Kh8 {[%emt 0:00:56]} 20. Nxe7 {[%emt 0:00:47]} Qxe7 {[%emt 0:00:17]} 21. Re1 {[%emt 0:01:46]} Qf8 {[%emt 0:00:45]} 22. Bd3 {[%emt 0:05:29]} Qf7 {[%emt 0:01:42]} 23. Rad1 {[%emt 0:02:59]} Ndf8 {[%emt 0:01:55]} 24. Bc4 {[%emt 0:06:58]} Be6 {[%emt 0:05:59]} 25. Bxe6 {[%emt 0:00:34]} Nxe6 {[%emt 0:00:24]} 26. Qc4 {[%emt 0:04:17]} Ngf8 {[%emt 0:00:45]} 27. Rd6 {[%emt 0:01:09]} Re8 {[%emt 0:02:09]} 28. b5 {[%emt 0:04:04]} axb5 {[%emt 0:03:08]} 29. Qxb5 {[%emt 0:00:29]} Kg8 {[%emt 0:01:25]} 30. g3 {[%emt 0:02:14]} Re7 {[%emt 0:01:04]} 31. Red1 {[%emt 0:01:33]} Bb8 {[%emt 0:00:42]} 32. R6d5 {[%emt 0:00:39]} Nc7 {[%emt 0:01:01]} 33. Qxc5 {[%emt 0:01:20]} Nxd5 {[%emt 0:00:49]} 34. Rxd5 {[%emt 0:00:46]} Rd7 {[%emt 0:01:41]} 35. Rxd7 {[%emt 0:01:11]} Qxd7 {[%emt 0:00:17]} 36. Qc4+ {[%emt 0:00:22]} Qe6 {[%emt 0:00:51]} 37. Qxe6+ {[%emt 0:01:34]} 1/2-1/2

[Event "9. Korbacher Open 2017"]
[Site "Korbach"]
[Date "2017.10.22"]
[Round "7"]
[White "Heinemann, Ernst"]
[Black "Dijkhuis, Oele"]
[Result "1/2-1/2"]
[ECO "B51"]
[WhiteElo "2099"]
[BlackElo "2035"]
[Annotator "NA"]
[PlyCount "27"]
[EventDate "2017.??.??"]
[EventType "swiss"]
[EventCountry "GER"]
[SourceTitle "playchess.com"]
[Source "ChessBase"]
[SourceQuality "1"]
[TimeControl "40/5400+30:1800+30"]

1. e4 {[%emt 0:00:00]} c5 {[%emt 0:00:06]} 2. Nf3 {[%emt 0:00:00]} d6 {[%emt 0:00:06]} 3. Bb5+ {[%emt 0:00:02]} Nd7 {[%emt 0:00:11]} 4. c3 {[%emt 0:02:21]} a6 {[%emt 0:00:34]} 5. Ba4 {[%emt 0:00:39]} b5 {[%emt 0:01:16]} 6. Bc2 {[%emt 0:02:01]} Ngf6 {[%emt 0:00:26]} 7. d3 {[%emt 0:01:19]} e6 {[%emt 0:02:12]} 8. O-O {[%emt 0:01:30]} Be7 {[%emt 0:01:58]} 9. h3 {[%emt 0:01:56]} Bb7 {[%emt 0:01:55]} 10. Re1 {[%emt 0:00:41]} O-O {[%emt 0:01:57]} 11. Nbd2 {[%emt 0:01:30]} h6 {[%emt 0:03:16]} 12. Nf1 {[%emt 0:05:11]} Ne5 {[%emt 0:05:57]} 13. Nxe5 {[%emt 0:04:08]} dxe5 {[%emt 0:00:24]} 14. Qe2 {[%emt 0:06:34]} 1/2-1/2

[Event "9. Korbacher Open 2017"]
[Site "Korbach"]
[Date "2017.10.22"]
[Round "7"]
[White "Sanati, Charlotte"]
[Black "Lesny, Florian"]
[Result "1/2-1/2"]
[ECO "D45"]
[WhiteElo "2098"]
[BlackElo "1997"]
[Annotator "NA"]
[PlyCount "60"]
[EventDate "2017.??.??"]
[EventType "swiss"]
[EventCountry "GER"]
[SourceTitle "playchess.com"]
[Source "ChessBase"]
[SourceQuality "1"]
[TimeControl "40/5400+30:1800+30"]

1. d4 {[%emt 0:00:00]} d5 {[%emt 0:00:05]} 2. c4 {[%emt 0:00:00]} c6 {[%emt 0:00:06]} 3. Nc3 {[%emt 0:00:00]} Nf6 {[%emt 0:00:09]} 4. Nf3 {[%emt 0:00:00]} e6 {[%emt 0:00:19]} 5. e3 {[%emt 0:00:12]} Be7 {[%emt 0:00:18]} 6. Qc2 {[%emt 0:00:45]} Nbd7 {[%emt 0:00:31]} 7. b3 {[%emt 0:00:40]} b6 {[%emt 0:01:53]} 8. Bd3 {[%emt 0:00:57]} Bb7 {[%emt 0:00:52]} 9. Bb2 {[%emt 0:00:58]} O-O {[%emt 0:00:42]} 10. O-O {[%emt 0:00:19]} Rc8 {[%emt 0:01:46]} 11. Qe2 {[%emt 0:02:23]} dxc4 {[%emt 0:05:02]} 12. bxc4 {[%emt 0:01:15]} c5 {[%emt 0:00:34]} 13. Rfd1 {[%emt 0:02:23]} Qc7 {[%emt 0:03:38]} 14. d5 {[%emt 0:06:41]} exd5 {[%emt 0:01:32]} 15. cxd5 {[%emt 0:00:25]} Nxd5 {[%emt 0:00:53]} 16. Nxd5 {[%emt 0:01:41]} Bxd5 {[%emt 0:00:16]} 17. Bxh7+ {[%emt 0:03:52]} Kxh7 {[%emt 0:00:22]} 18. Rxd5 {[%emt 0:03:19]} Nf6 {[%emt 0:02:12]} 19. Qd3+ {[%emt 0:13:03]} g6 {[%emt 0:07:10]} 20. Qc3 {[%emt 0:05:23]} Rfd8 {[%emt 0:06:26]} 21. Re5 {[%emt 0:03:41]} Rd6 {[%emt 0:03:10]} 22. Ng5+ {[%emt 0:11:49]} Kg8 {[%emt 0:02:49]} 23. Qc4 {[%emt 0:01:13]} Bf8 {[%emt 0:00:59]} 24. Qh4 {[%emt 0:11:51]} Rcd8 {[%emt 0:01:39]} 25. Rf1 {[%emt 0:03:26]} Bg7 {[%emt 0:01:15]} 26. Rd5 {[%emt 0:09:18]} Rxd5 {[%emt 0:03:32]} 27. Bxf6 {[%emt 0:00:07]} Rxg5 {[%emt 0:00:10]} 28. Qxg5 {[%emt 0:01:18]} Bxf6 {[%emt 0:00:32]} 29. Qxf6 {[%emt 0:00:03]} Qd6 {[%emt 0:00:28]} 30. Qg5 {[%emt 0:02:01]} Qd5 {[%emt 0:01:25]} 1/2-1/2

[Event "9. Korbacher Open 2017"]
[Site "Korbach"]
[Date "2017.10.22"]
[Round "7"]
[White "Nielsen, Klaus"]
[Black "Goetz, Jan"]
[Result "1-0"]
[ECO "C15"]
[WhiteElo "2092"]
[BlackElo "1890"]
[Annotator "NA"]
[PlyCount "67"]
[EventDate "2017.??.??"]
[EventType "swiss"]
[EventCountry "GER"]
[SourceTitle "playchess.com"]
[Source "ChessBase"]
[SourceQuality "1"]
[TimeControl "40/5400+30:1800+30"]

1. d4 {[%emt 0:00:00]} d5 {[%emt 0:00:46]} 2. Nc3 {[%emt 0:00:00]} e6 {[%emt 0:02:24]} 3. e4 {[%emt 0:03:04]} Bb4 {[%emt 0:04:14]} 4. Nge2 {[%emt 0:03:17]} dxe4 {[%emt 0:05:17]} 5. a3 {[%emt 0:00:16]} Be7 {[%emt 0:00:43]} 6. Nxe4 {[%emt 0:00:10]} Nf6 {[%emt 0:00:23]} 7. N2g3 {[%emt 0:02:22]} O-O {[%emt 0:03:11]} 8. Be3 {[%emt 0:00:45]} b6 {[%emt 0:00:46]} 9. Bd3 {[%emt 0:00:54]} Bb7 {[%emt 0:05:55]} 10. Qf3 {[%emt 0:13:28]} Nxe4 {[%emt 0:01:43]} 11. Nxe4 {[%emt 0:02:00]} Nc6 {[%emt 0:02:45]} 12. Qh3 {[%emt 0:05:06]} f5 {[%emt 0:02:32]} 13. Nc3 {[%emt 0:04:04]} Nxd4 {[%emt 0:02:51]} 14. O-O-O {[%emt 0:00:32]} c5 {[%emt 0:13:58]} 15. Rhg1 {[%emt 0:04:43]} Qc8 {[%emt 0:04:56]} 16. g4 {[%emt 0:03:35]} Nf3 {[%emt 0:10:21]} 17. gxf5 {[%emt 0:03:33]} Nxg1 {[%emt 0:03:02]} 18. Rxg1 {[%emt 0:00:08]} Rxf5 {[%emt 0:00:37]} 19. Qh6 {[%emt 0:09:19]} Bf6 {[%emt 0:07:40]} 20. Bxf5 {[%emt 0:00:17]} exf5 {[%emt 0:02:13]} 21. Qxf6 {[%emt 0:00:16]} Qf8 {[%emt 0:01:59]} 22. Qe6+ {[%emt 0:01:42]} Qf7 {[%emt 0:02:39]} 23. Qxf7+ {[%emt 0:00:09]} Kxf7 {[%emt 0:00:02]} 24. Rd1 {[%emt 0:00:13]} Ke6 {[%emt 0:00:54]} 25. Bf4 {[%emt 0:00:43]} Rg8 {[%emt 0:01:14]} 26. h4 {[%emt 0:00:58]} h6 {[%emt 0:00:13]} 27. Rg1 {[%emt 0:06:14]} Kf7 {[%emt 0:01:20]} 28. Nb5 {[%emt 0:00:16]} Bc6 {[%emt 0:00:35]} 29. Nd6+ {[%emt 0:00:34]} Ke6 {[%emt 0:00:48]} 30. Rg6+ {[%emt 0:00:21]} Kd5 {[%emt 0:01:00]} 31. f3 {[%emt 0:03:03]} Bd7 {[%emt 0:00:47]} 32. c4+ {[%emt 0:00:25]} Kd4 {[%emt 0:00:03]} 33. Bxh6 {[%emt 0:02:44]} Rh8 {[%emt 0:00:43]} 34. Bxg7+ {[%emt 0:00:07]} 1-0

[Event "9. Korbacher Open 2017"]
[Site "Korbach"]
[Date "2017.10.22"]
[Round "7"]
[White "Braun, Ingram"]
[Black "Maar, Samuel"]
[Result "0-1"]
[ECO "B26"]
[WhiteElo "2042"]
[BlackElo "1998"]
[Annotator "NA"]
[PlyCount "100"]
[EventDate "2017.??.??"]
[EventType "swiss"]
[EventCountry "GER"]
[SourceTitle "playchess.com"]
[Source "ChessBase"]
[SourceQuality "1"]
[TimeControl "40/5400+30:1800+30"]

1. e4 {[%emt 0:00:00]} c5 {[%emt 0:00:06]} 2. Nc3 {[%emt 0:00:00]} d6 {[%emt 0:00:16]} 3. g3 {[%emt 0:00:00]} Nc6 {[%emt 0:00:05]} 4. Bg2 {[%emt 0:00:00]} g6 {[%emt 0:00:13]} 5. d3 {[%emt 0:00:00]} Bg7 {[%emt 0:00:10]} 6. Be3 {[%emt 0:00:05]} Nf6 {[%emt 0:01:31]} 7. h3 {[%emt 0:01:22]} O-O {[%emt 0:03:33]} 8. Nge2 {[%emt 0:01:53]} Be6 {[%emt 0:02:16]} 9. O-O {[%emt 0:02:46]} Rc8 {[%emt 0:02:23]} 10. Nd5 {[%emt 0:03:05]} Bd7 {[%emt 0:07:19]} 11. c3 {[%emt 0:02:37]} e6 {[%emt 0:02:33]} 12. Nxf6+ {[%emt 0:00:30]} Bxf6 {[%emt 0:01:16]} 13. Qd2 {[%emt 0:00:50]} Re8 {[%emt 0:05:01]} 14. Rad1 {[%emt 0:01:47]} Qa5 {[%emt 0:08:55]} 15. a3 {[%emt 0:04:46]} d5 {[%emt 0:04:31]} 16. exd5 {[%emt 0:19:08]} exd5 {[%emt 0:00:24]} 17. d4 {[%emt 0:00:15]} cxd4 {[%emt 0:04:53]} 18. Nxd4 {[%emt 0:00:07]} Ne5 {[%emt 0:02:17]} 19. Bg5 {[%emt 0:30:20]} Nc4 {[%emt 0:06:40]} 20. Qc1 {[%emt 0:00:08]} Bxg5 {[%emt 0:02:04]} 21. Qxg5 {[%emt 0:00:01]} Nxb2 {[%emt 0:00:50]} 22. Bxd5 {[%emt 0:07:17]} Kg7 {[%emt 0:08:41]} 23. Nb3 {[%emt 0:03:02]} Qd8 {[%emt 0:10:20]} 24. Qxd8 {[%emt 0:05:32]} Rexd8 {[%emt 0:00:13]} 25. Rb1 {[%emt 0:01:52]} Bxh3 {[%emt 0:02:01]} 26. Bg2 {[%emt 0:09:20]} Bxg2 {[%emt 0:00:36]} 27. Kxg2 {[%emt 0:00:01]} Nc4 {[%emt 0:01:22]} 28. a4 {[%emt 0:00:30]} Na3 {[%emt 0:01:12]} 29. Rbc1 {[%emt 0:00:37]} Rd3 {[%emt 0:00:23]} 30. Nd4 {[%emt 0:03:18]} Rcxc3 {[%emt 0:01:48]} 31. Rxc3 {[%emt 0:01:25]} Rxc3 {[%emt 0:00:05]} 32. Ra1 {[%emt 0:00:42]} Nc2 {[%emt 0:01:19]} 33. Nxc2 {[%emt 0:00:56]} Rxc2 {[%emt 0:00:01]} 34. Rb1 {[%emt 0:00:18]} b6 {[%emt 0:00:19]} 35. a5 {[%emt 0:00:24]} Rc6 {[%emt 0:00:22]} 36. axb6 {[%emt 0:00:05]} Rxb6 {[%emt 0:00:04]} 37. Ra1 {[%emt 0:00:30]} a6 {[%emt 0:01:31]} 38. Kf3 {[%emt 0:00:20]} Kf6 {[%emt 0:00:27]} 39. Ke4 {[%emt 0:00:40]} Ke6 {[%emt 0:00:19]} 40. g4 {[%emt 0:00:37]} Kd6 {[%emt 0:32:11]} 41. Kd4 {[%emt 0:31:57]} Rb4+ {[%emt 0:02:36]} 42. Ke3 {[%emt 0:00:03]} Rxg4 {[%emt 0:00:42]} 43. Rxa6+ {[%emt 0:00:04]} Ke7 {[%emt 0:00:06]} 44. Ra7+ {[%emt 0:00:50]} Kf6 {[%emt 0:00:07]} 45. Ra6+ {[%emt 0:00:01]} Kg7 {[%emt 0:00:29]} 46. Ra7 {[%emt 0:00:14]} h5 {[%emt 0:00:06]} 47. Rb7 {[%emt 0:00:11]} Rg1 {[%emt 0:01:05]} 48. Kf3 {[%emt 0:00:12]} h4 {[%emt 0:00:45]} 49. Rb4 {[%emt 0:01:40]} g5 {[%emt 0:00:07]} 50. Rb5 {[%emt 0:00:11]} h3 {[%emt 0:00:13]} 0-1

[Event "9. Korbacher Open 2017"]
[Site "Korbach"]
[Date "2017.10.22"]
[Round "7"]
[White "Schmidt, Matthias"]
[Black "Tschoepe, Nino"]
[Result "1/2-1/2"]
[ECO "C26"]
[WhiteElo "2031"]
[BlackElo "1978"]
[Annotator "NA"]
[PlyCount "20"]
[EventDate "2017.??.??"]
[EventType "swiss"]
[EventCountry "GER"]
[SourceTitle "playchess.com"]
[Source "ChessBase"]
[SourceQuality "1"]
[TimeControl "40/5400+30:1800+30"]

1. e4 {[%emt 0:00:00]} e5 {[%emt 0:00:06]} 2. Nc3 {[%emt 0:00:00]} Nf6 {[%emt 0:00:08]} 3. Bc4 {[%emt 0:00:00]} Bc5 {[%emt 0:00:08]} 4. d3 {[%emt 0:00:26]} c6 {[%emt 0:00:09]} 5. Bb3 {[%emt 0:08:49]} b5 {[%emt 0:01:12]} 6. a3 {[%emt 0:01:18]} d6 {[%emt 0:01:03]} 7. h3 {[%emt 0:05:37]} O-O {[%emt 0:04:12]} 8. Nf3 {[%emt 0:01:14]} Re8 {[%emt 0:06:10]} 9. O-O {[%emt 0:01:22]} h6 {[%emt 0:00:25]} 10. Be3 {[%emt 0:19:49]} Nbd7 {[%emt 0:01:20]} 1/2-1/2

[Event "9. Korbacher Open 2017"]
[Site "Korbach"]
[Date "2017.10.22"]
[Round "7"]
[White "Stahnke, Thorsten"]
[Black "Wuestehube, Harry"]
[Result "1/2-1/2"]
[ECO "A30"]
[WhiteElo "2026"]
[BlackElo "1906"]
[Annotator "NA"]
[PlyCount "53"]
[EventDate "2017.??.??"]
[EventType "swiss"]
[EventCountry "GER"]
[SourceTitle "playchess.com"]
[Source "ChessBase"]
[SourceQuality "1"]
[TimeControl "40/5400+30:1800+30"]

1. c4 {[%emt 0:00:00]} c5 {[%emt 0:01:09]} 2. Nf3 {[%emt 0:00:00]} Nc6 {[%emt 0:00:20]} 3. d4 {[%emt 0:00:06]} cxd4 {[%emt 0:00:42]} 4. Nxd4 {[%emt 0:00:09]} Nf6 {[%emt 0:01:24]} 5. Nc3 {[%emt 0:00:14]} g6 {[%emt 0:01:43]} 6. e4 {[%emt 0:00:32]} d6 {[%emt 0:00:12]} 7. Be2 {[%emt 0:00:20]} Bg7 {[%emt 0:00:09]} 8. Be3 {[%emt 0:00:16]} O-O {[%emt 0:01:54]} 9. Qd2 {[%emt 0:00:20]} Bd7 {[%emt 0:02:06]} 10. O-O {[%emt 0:00:59]} Ng4 {[%emt 0:08:07]} 11. Bxg4 {[%emt 0:00:50]} Bxg4 {[%emt 0:00:40]} 12. Nd5 {[%emt 0:05:42]} e5 {[%emt 0:11:16]} 13. Nc2 {[%emt 0:22:55]} Qd7 {[%emt 0:16:05]} 14. Rac1 {[%emt 0:07:06]} f6 {[%emt 0:08:09]} 15. b4 {[%emt 0:11:00]} Ne7 {[%emt 0:05:39]} 16. Nxe7+ {[%emt 0:03:47]} Qxe7 {[%emt 0:00:11]} 17. b5 {[%emt 0:00:15]} Rfd8 {[%emt 0:11:33]} 18. Nb4 {[%emt 0:02:22]} Be6 {[%emt 0:06:04]} 19. Rc3 {[%emt 0:16:53]} Qf7 {[%emt 0:00:51]} 20. Nd5 {[%emt 0:01:54]} Bf8 {[%emt 0:03:52]} 21. Rfc1 {[%emt 0:02:35]} Rdc8 {[%emt 0:06:28]} 22. b6 {[%emt 0:08:37]} a6 {[%emt 0:00:19]} 23. a4 {[%emt 0:01:33]} Rab8 {[%emt 0:01:17]} 24. a5 {[%emt 0:01:40]} Bd7 {[%emt 0:06:10]} 25. f3 {[%emt 0:01:05]} Bc6 {[%emt 0:00:16]} 26. Qc2 {[%emt 0:01:48]} Rd8 {[%emt 0:00:23]} 27. Nb4 {[%emt 0:01:41]} 1/2-1/2